bitfinex-derivatives/quotes_ETHF0:USTF0_20251007
["timestamp","ask_amount","ask_price","bid_price","bid_amount"]
[1759822395806,0.46684139,4682.7,4682.6,1.09258]
[1759822396008,3.2078,4683.0,4682.9,1.09256]
[1759822396197,3.7191,4683.5,4683.4,1.09251]
[1759822396398,4.18585773,4683.5,4683.4,1.30651]
[1759822396598,3.7191,4683.5,4683.4,1.30651]
[1759822400904,3.9212,4683.5,4683.4,1.30651]
[1759822401208,4.0418,4683.5,4683.4,1.30651]
[1759822401910,4.0418,4683.5,4683.4,0.80141]
[1759822402411,4.0418,4683.5,4683.4,0.38411]
[1759822402707,4.0418,4683.5,4683.4,0.59811]
[1759822402902,3.7308,4683.5,4682.7,0.3047]
[1759822403105,1.09756,4682.9,4682.7,0.38417]
[1759822403310,1.09756,4682.9,4682.8,0.214]
[1759822404106,0.7134,4682.9,4682.8,0.214]
[1759822405413,0.4024,4682.7,4682.6,0.38418]
[1759822405705,0.7134,4682.7,4682.6,0.59818]
[1759822406001,0.7134,4682.7,4681.8,0.96061]
[1759822406002,0.7134,4682.3,4682.2,3.79531]
[1759822406206,0.7134,4682.3,4682.2,4.51441]
[1759822407007,0.7134,4682.3,4682.2,4.20971]
[1759822407207,0.7134,4682.3,4682.2,3.99571]
[1759822407712,0.1206,4682.5,4681.9,0.38423]
[1759822407713,0.834,4682.0,4681.9,0.38423]
[1759822407902,0.834,4682.0,4681.9,0.59823]
[1759822408607,0.834,4682.0,4681.9,0.80153]
[1759822409398,0.834,4682.0,4681.9,0.58753]
[1759822409600,0.834,4682.0,4681.9,0.80153]
[1759822410414,1.21823,4682.0,4681.9,0.214]
[1759822410708,1.21823,4682.0,4681.9,0.4173]
[1759822411801,0.834,4682.0,4681.9,0.4173]
[1759822412310,0.834,4682.0,4681.9,0.722]
[1759822413913,0.834,4682.0,4681.9,0.9224]
[1759822414313,0.834,4682.0,4681.9,0.7084]
[1759822414611,0.834,4682.0,4681.9,0.9224]
[1759822416313,1.21823,4682.0,4681.9,0.214]
[1759822416810,0.7342,4681.8,4681.7,0.59274336]
[1759822417115,0.7342,4681.8,4681.7,0.21569336]
[1759822418312,0.7342,4681.8,4681.7,0.43259336]
[1759822418510,0.5321,4681.8,4681.7,0.95439336]
[1759822418716,0.7251,4682.2,4682.1,1.12292]
[1759822419213,0.7251,4682.2,4682.1,0.80922]
[1759822420015,0.7251,4682.2,4682.1,0.425]
[1759822420216,0.7251,4682.2,4682.1,0.2169]
[1759822420710,0.38422,4682.1,4682.0,0.214]
[1759822420917,0.7251,4681.8,4681.7,0.60284336]
[1759822421312,0.7251,4681.8,4681.7,1.13054336]
[1759822421518,0.7251,4681.8,4681.7,1.33864336]
[1759822421711,0.7251,4681.8,4681.7,1.12464336]
[1759822421912,0.7251,4681.8,4681.7,1.33864336]
[1759822425719,0.7251,4681.8,4681.7,0.43259336]
[1759822425921,0.7251,4681.8,4681.7,0.21569336]
[1759822426517,0.7251,4681.8,4681.7,0.00169336]
[1759822426714,0.7251,4681.8,4681.7,0.21569336]
[1759822427318,0.7251,4681.8,4681.7,0.00169336]
[1759822427519,0.7251,4681.8,4681.7,0.21569336]
[1759822427919,0.7251,4681.8,4681.7,0.43259336]
[1759822429123,0.7251,4681.8,4681.7,0.95439336]
[1759822430620,0.7251,4681.8,4681.7,0.64069336]
[1759822430814,0.7251,4681.8,4681.7,0.95439336]
[1759822431512,0.5234,4682.3,4682.2,0.38421]
[1759822431721,0.5234,4682.3,4682.2,1.33691]
[1759822432321,0.3147,4682.3,4682.2,1.33691]
[1759822432517,0.5234,4682.3,4682.2,1.33691]
[1759822433622,0.3147,4682.3,4682.2,1.33691]
[1759822433819,0.5234,4682.3,4682.2,1.33691]
[1759822435121,0.7251,4682.3,4682.2,1.33691]
[1759822435427,0.7251,4682.3,4682.2,0.81511]
[1759822435820,0.7251,4682.3,4682.2,1.33691]
[1759822438120,0.7251,4682.9,4682.8,0.60106]
[1759822438324,1.19286562,4682.9,4682.8,0.80916]
[1759822438630,1.19286562,4682.9,4682.8,1.12286]
[1759822440319,1.19286562,4682.9,4682.8,0.38416]
[1759822440525,1.19286562,4682.9,4682.8,0.214]
[1759822440725,1.19286562,4682.9,4682.8,0.4309]
[1759822441723,1.19286562,4682.9,4682.8,0.214]
[1759822441919,1.19286562,4682.9,4682.1,0.2169]
[1759822441920,0.5164,4682.2,4682.1,0.2169]
[1759822442126,0.5164,4682.2,4682.1,0.59822]
[1759822442127,0.7251,4682.2,4682.1,0.59822]
[1759822442823,0.7251,4682.2,4682.1,0.38422]
[1759822443029,0.7251,4682.2,4682.1,0.59822]
[1759822443230,0.7251,4682.2,4682.1,1.33692]
[1759822444833,0.7251,4682.2,4682.1,1.12292]
[1759822445033,0.7251,4682.2,4682.1,1.33692]
[1759822445234,0.7251,4682.2,4682.1,1.12292]
[1759822445425,0.7251,4682.2,4682.1,1.33692]
[1759822445933,0.7251,4682.2,4682.1,1.12292]
[1759822446125,0.7251,4682.2,4682.1,1.33692]
[1759822446521,0.2069,4682.5,4682.4,0.8176]
[1759822446836,0.6745137,4682.5,4682.4,1.1381]
[1759822447128,0.9991137,4682.5,4682.4,1.1381]
[1759822448834,0.5315,4682.5,4682.4,1.1381]
[1759822450335,0.99907636,4682.5,4682.4,1.1381]
[1759822451031,1.21867636,4682.5,4682.4,1.1381]
[1759822451232,1.34317636,4682.5,4682.4,1.1381]
[1759822452036,1.21867636,4682.5,4682.4,1.1381]
[1759822452436,0.7511,4682.5,4682.4,1.1381]
[1759822452738,1.21868867,4682.5,4682.4,1.1381]
[1759822452940,1.34318867,4682.5,4682.4,1.0316]
[1759822454047,1.34318867,4682.5,4682.4,0.8176]
[1759822454344,1.34318867,4682.5,4682.4,1.0316]
[1759822455447,1.34318867,4682.5,4682.4,1.3521]
[1759822455740,1.34318867,4682.5,4682.4,1.1381]
[1759822455939,1.34318867,4682.5,4682.4,0.6016]
[1759822456245,1.34318867,4682.5,4682.4,0.5982]
[1759822456746,1.34318867,4682.5,4682.4,0.8156]
[1759822457347,1.34318867,4682.5,4682.4,0.214]
[1759822465051,0.99908867,4682.5,4682.4,0.9679]
[1759822465444,1.21868867,4682.5,4682.4,0.9679]
[1759822466450,1.21908144,4682.5,4682.4,0.9679]
[1759822466652,1.34358144,4682.5,4682.4,0.9679]
[1759822475757,1.34358144,4682.5,4682.4,0.6474]
[1759822475959,1.34358144,4682.5,4682.4,0.4314]
[1759822480863,1.34358144,4682.5,4682.4,0.214]
[1759822482157,0.2085,4682.3,4681.8,3.2078]
[1759822482365,0.8441,4682.0,4681.9,0.59824]
[1759822482561,0.8441,4682.0,4681.9,0.81794]
[1759822483262,0.8441,4682.0,4681.9,1.12784]
[1759822483452,0.7128,4682.0,4681.9,1.34714]
[1759822483651,0.8441,4682.0,4681.9,1.34714]
[1759822484664,0.8441,4682.0,4681.9,1.03724]
[1759822485561,0.8441,4682.0,4681.9,0.82324]
[1759822486063,0.8441,4682.0,4681.9,1.03724]
[1759822486464,0.8441,4682.0,4681.9,0.81794]
[1759822488362,0.8441,4682.0,4681.9,0.60394]
[1759822488562,0.8441,4682.0,4681.9,0.81794]
[1759822493065,1.311968,4682.0,4681.9,0.81794]
[1759822493863,1.32262003,4682.0,4681.9,0.81794]
[1759822494365,1.32262003,4682.0,4681.9,1.12784]
[1759822494564,1.32262003,4682.0,4681.9,1.34714]
[1759822495567,1.32262003,4682.0,4681.9,0.81794]
[1759822498163,0.7128,4681.8,4681.7,0.00169336]
[1759822498363,1.180668,4681.8,4681.7,0.21569336]
[1759822498969,1.19132003,4681.8,4681.7,0.21569336]
[1759822501464,1.19132003,4681.8,4681.7,0.00169336]
[1759822501762,0.2038,4680.9,4680.8,3.4275]
[1759822501963,0.2038,4680.9,4680.8,0.4337]
[1759822501964,0.72345203,4680.9,4680.8,0.4337]
[1759822502169,0.72345203,4680.9,4680.6,0.3099]
[1759822502365,0.5043,4680.7,4680.4,0.3099]
[1759822502567,0.7128,4680.6,4680.5,0.81805]
[1759822502767,0.71469294,4680.6,4680.5,0.82057273]
[1759822502968,0.71469294,4680.6,4680.5,0.60087273]
[1759822503265,0.72534497,4680.6,4680.5,0.60087273]
[1759822503461,0.72534497,4680.6,4679.8,0.45642301]
[1759822503462,0.4123,4679.9,4679.8,0.45642301]
[1759822503665,0.3005,4679.3,4678.8,4.72824075]
[1759822503867,0.5043,4678.9,4678.8,4.03129]
[1759822504171,0.51495203,4678.9,4678.8,4.24529]
[1759822504370,0.31115203,4678.9,4678.8,4.55909]
[1759822504572,0.01065203,4678.9,4678.8,4.56083958]
[1759822505971,3.2078,4679.9,4678.8,4.56083958]
[1759822505972,3.4207,4679.9,4679.8,0.4267]
[1759822506173,0.5316,4679.9,4679.8,0.9545]
[1759822506970,0.2129,4680.2,4680.1,1.12489]
[1759822507170,3.2078,4680.9,4680.5,1.12485]
[1759822507377,0.3187,4681.1,4680.5,1.46275]
[1759822507874,0.38429,4681.3,4680.5,1.46275]
[1759822508278,0.70299,4681.3,4680.5,1.46275]
[1759822509576,0.3843,4681.2,4680.5,1.46275]
[1759822509876,0.38431,4681.1,4680.5,1.46275]
[1759822510279,0.70301,4681.1,4680.5,1.46275]
[1759822511278,0.3187,4681.1,4680.5,1.46275]
[1759822512274,0.3187,4680.9,4680.5,1.46275]
[1759822515985,0.74469294,4680.6,4680.5,0.81105]
[1759822516277,0.74469294,4680.6,4680.5,1.02505]
[1759822516886,0.74469294,4680.6,4680.5,0.59575]
[1759822517084,0.8665,4680.0,4679.9,3.4192]
[1759822517280,0.8665,4680.0,4679.9,4.0176]
[1759822517787,0.7428,4680.0,4679.9,4.5467]
[1759822518786,0.7428,4680.0,4679.9,4.3327]
[1759822519285,0.8665,4680.0,4679.9,4.0189]
[1759822519481,0.8665,4680.0,4679.9,1.0251]
[1759822520484,0.3844,4679.9,4679.7,0.38442]
[1759822520687,0.2129,4679.6,4679.2,3.5216]
[1759822520883,0.7428,4679.3,4679.2,3.733]
[1759822521085,0.7428,4679.3,4679.2,4.1623]
[1759822522391,0.7428,4679.3,4679.2,4.54676]
[1759822525594,0.7428,4679.3,4679.2,3.9483]
[1759822525794,0.5478,4679.0,4678.9,0.5252]
[1759822525998,0.8665,4679.0,4678.9,0.7392]
[1759822526994,0.8665,4679.0,4678.9,0.9545]
[1759822527299,0.5316,4679.0,4678.9,0.9545]
[1759822527896,0.5316,4679.4,4679.3,0.7405]
[1759822528096,0.3187,4679.7,4679.6,0.4267]
[1759822528298,0.3187,4679.7,4679.6,0.9545]
[1759822528495,0.3187,4679.7,4679.6,1.33893]
[1759822529198,0.5316,4679.7,4679.6,1.33893]
[1759822530804,0.7428,4679.7,4679.6,1.33893]
[1759822534198,0.7428,4679.7,4679.6,0.4254]
[1759822534600,0.7428,4679.7,4679.6,0.214]
[1759822534804,0.5324,4680.2,4680.1,0.4225]
[1759822535010,0.5324,4680.2,4680.1,0.7527]
[1759822535209,0.7421,4680.2,4680.1,0.7527]
[1759822536008,0.7421,4680.2,4680.1,0.4225]
[1759822536512,0.80649,4680.1,4680.0,0.214]
[1759822536710,1.12649,4680.1,4680.0,0.214]
[1759822536909,0.2124,4679.6,4679.5,0.80693]
[1759822537110,0.5324,4679.6,4679.5,1.35113]
[1759822537512,0.1247,4680.0,4679.9,0.3844]
[1759822537712,0.3449,4680.0,4679.9,0.9587]
[1759822537913,0.563,4680.0,4679.9,0.9587]
[1759822538317,0.8909,4680.0,4679.9,0.9587]
[1759822544017,3.70788752,4680.0,4679.9,0.6307]
[1759822545216,4.17631502,4680.0,4679.9,0.6307]
[1759822545516,4.17631502,4680.0,4679.9,0.214]
[1759822548321,4.17631502,4680.0,4679.9,0.9587]
[1759822548722,1.2346275,4680.0,4679.9,0.9587]
[1759822549618,0.7963275,4680.0,4679.9,0.9587]
[1759822549920,3.974,4680.3,4680.2,0.7447]
[1759822550117,4.44289762,4680.3,4680.2,0.7447]
[1759822551320,1.23509762,4680.3,4680.2,0.7447]
[1759822552211,1.23509762,4680.3,4680.2,0.2167]
[1759822552420,0.4383,4680.0,4679.9,0.9587]
[1759822552621,0.7662,4680.0,4679.9,0.9587]
[1759822554619,0.8862,4680.0,4679.9,0.2167]
[1759822554817,0.8862,4680.0,4679.6,0.2167]
[1759822554818,1.15062,4679.7,4679.6,0.2167]
[1759822555018,0.5583,4679.5,4679.4,0.38444]
[1759822555315,0.8862,4679.5,4679.4,1.34314]
[1759822555511,0.8862,4679.5,4679.4,0.9587]
[1759822556123,1.35503649,4679.5,4679.4,0.9587]
[1759822556623,1.35503649,4679.5,4679.4,0.6307]
[1759822556823,1.35503649,4679.5,4679.4,0.4307]
[1759822557128,0.8862,4679.5,4679.4,0.4307]
[1759822557322,1.35517306,4679.5,4679.4,0.4307]
[1759822558121,1.35517306,4679.5,4679.4,0.9587]
[1759822558315,3.2078,4679.8,4679.5,0.38443]
[1759822558520,0.3279,4679.7,4679.6,1.12912]
[1759822559024,0.5481,4679.7,4679.6,1.12912]
[1759822559417,0.5481,4679.7,4679.6,0.7447]
[1759822559913,0.7662,4679.7,4679.6,0.7447]
[1759822560521,0.12,4679.5,4679.2,3.2078]
[1759822560721,1.15064,4679.4,4679.3,0.7587]
[1759822560922,1.15064,4679.4,4679.3,0.9587]
[1759822562028,0.7662,4679.4,4679.3,0.9587]
[1759822563421,3.6461,4679.9,4679.8,0.2167]
[1759822563629,0.90723567,4679.9,4679.8,0.5447]
[1759822563832,4.03538773,4679.9,4679.8,0.5447]
[1759822564029,4.36328773,4679.9,4679.8,0.2167]
[1759822564423,4.36328773,4679.9,4679.7,0.214]
[1759822564623,4.36328773,4679.9,4679.5,0.328]
[1759822564624,0.7445,4679.3,4678.8,0.00174958]
[1759822564938,1.12898,4678.9,4678.8,0.00174958]
[1759822565234,1.59791567,4678.9,4678.8,0.00174958]
[1759822566131,1.12898,4678.9,4678.8,0.00174958]
[1759822567330,1.12898,4678.9,4678.8,0.21574958]
[1759822569033,1.12898,4678.9,4678.8,0.00174958]
[1759822570629,1.59728284,4678.9,4678.8,0.00174958]
[1759822570832,7.56155926,4678.9,4678.8,0.00174958]
[1759822571223,7.56155926,4678.9,4676.9,0.96163]
[1759822571224,0.94606,4678.0,4677.6,3.59239]
[1759822571427,1.25676,4678.0,4677.9,0.23537734]
[1759822572229,1.25676,4678.0,4677.9,0.23747834]
[1759822572641,0.8722,4678.0,4677.9,0.97187834]
[1759822572935,0.7445,4678.0,4677.9,0.97187834]
[1759822574538,0.7445,4678.0,4677.9,0.75787834]
[1759822574737,0.8722,4678.0,4677.9,0.97187834]
[1759822575633,0.8722,4678.0,4677.9,0.66517834]
[1759822576742,0.8722,4678.0,4677.9,0.44897834]
[1759822577439,0.8722,4678.0,4677.9,0.23747834]
[1759822577739,0.8722,4678.0,4677.9,0.02347834]
[1759822578037,0.8722,4678.0,4677.9,0.23747834]
[1759822578634,0.8722,4678.0,4677.9,0.02347834]
[1759822578934,3.62305339,4678.0,4677.9,0.02347834]
[1759822580941,3.62305339,4678.0,4677.9,0.23497834]
[1759822581135,3.62305339,4678.0,4677.9,0.02347834]
[1759822582233,0.8722,4677.0,4676.9,3.9422]
[1759822582433,0.8722,4677.0,4676.9,3.6355]
[1759822582632,0.8722,4677.0,4676.9,3.8495]
[1759822582839,0.8722,4677.0,4676.9,3.6355]
[1759822583037,0.8722,4677.0,4676.9,3.8495]
[1759822583240,0.87404067,4677.0,4676.9,3.63495587]
[1759822584234,0.87404067,4677.0,4676.9,0.00165587]
[1759822584439,0.87404067,4677.0,4676.9,0.21565587]
[1759822585034,0.87404067,4677.0,4676.9,0.42715587]
[1759822585237,0.00184067,4677.0,4676.9,4.15785587]
[1759822592939,0.87404067,4677.0,4676.9,3.20945587]
[1759822593546,0.87404067,4677.0,4676.9,3.42345587]
[1759822593844,1.12919,4676.4,4676.3,3.4193]
[1759822594145,1.12919,4676.4,4676.3,3.6333]
[1759822594346,1.12919,4676.4,4676.3,3.9324]
[1759822594547,0.7445,4676.4,4676.3,4.1517]
[1759822594747,0.7445,4676.4,4676.3,4.15396895]
[1759822596639,0.7445,4676.4,4676.3,0.21626895]
[1759822597040,3.5389797,4676.4,4676.3,0.21626895]
[1759822598944,3.5389797,4676.4,4676.3,0.00226895]
[1759822599148,3.5389797,4676.4,4676.3,0.21626895]
[1759822599550,4.00692905,4676.4,4676.3,0.21626895]
[1759822601148,4.00692905,4676.4,4676.3,0.00226895]
[1759822602138,0.96175,4676.3,4675.3,3.59257]
[1759822602343,0.2043,4675.4,4675.3,4.34967]
[1759822602546,0.5038,4675.4,4675.3,4.56367]
[1759822603248,0.5038,4675.4,4675.3,4.5662805]
[1759822603547,0.5038,4675.7,4675.6,1.14186]
[1759822604051,0.7203,4675.7,4675.6,0.7571]
[1759822608051,0.7203,4675.7,4675.6,0.2083]
[1759822609550,0.7203,4675.7,4675.6,0.4223]
[1759822609940,0.7203,4675.7,4675.6,0.214]
[1759822610345,0.7203,4675.7,4675.6,0.4223]
[1759822610853,0.7203,4675.7,4675.6,0.9711]
[1759822611352,0.7203,4675.7,4675.6,0.7571]
[1759822611554,0.7203,4675.7,4675.6,0.6425]
[1759822611851,0.7203,4675.7,4675.6,0.214]
[1759822612254,0.2043,4675.4,4675.3,3.5390105]
[1759822612452,0.7203,4675.4,4675.3,3.9613105]
[1759822612951,0.7203,4675.4,4675.3,3.6327105]
[1759822613351,3.5235473,4675.4,4675.3,3.6327105]
[1759822613753,3.5235473,4675.4,4675.3,0.2166105]
[1759822615751,3.5235473,4675.4,4675.3,0.6451105]
[1759822615953,0.2995,4675.6,4675.5,0.4285]
[1759822616148,0.38473,4675.9,4675.7,0.38474]
[1759822616352,0.38473,4675.9,4675.8,0.9711]
[1759822616353,0.88853,4675.9,4675.8,0.9711]
[1759822617259,0.5038,4675.9,4675.8,0.9711]
[1759822617558,3.2078,4676.2,4675.8,0.9711]
[1759822617559,3.79681,4676.2,4676.1,0.7571]
[1759822617751,4.01331,4676.2,4676.1,0.7571]
[1759822618052,4.31281,4676.2,4676.1,0.7571]
[1759822619159,4.78015412,4676.2,4676.1,0.7571]
[1759822620451,4.78015412,4676.2,4676.1,0.4285]
[1759822620648,4.78015412,4676.2,4676.1,0.2083]
[1759822620856,4.78015412,4676.2,4676.1,0.214]
[1759822621560,4.78015412,4676.2,4675.3,3.2104105]
[1759822621561,0.8443,4675.5,4675.4,0.4285]
[1759822621761,0.8443,4675.5,4675.4,0.6425]
[1759822621954,0.8443,4675.5,4675.4,0.9711]
[1759822622756,0.8443,4675.5,4675.4,0.6425]
[1759822622960,0.88854,4675.8,4675.6,0.38475]
[1759822623162,1.10504,4675.8,4675.7,0.7571]
[1759822623662,3.48640427,4675.8,4675.7,0.7571]
[1759822623863,0.7203,4675.4,4675.3,0.2109105]
[1759822624066,0.7203,4675.4,4675.3,0.2166105]
[1759822624258,0.7203,4675.4,4675.3,0.4249105]
[1759822624765,0.7203,4675.4,4675.3,0.9534105]
[1759822628258,0.7203,4675.4,4675.3,0.0026105]
[1759822628861,1.18889535,4675.4,4675.3,0.0026105]
[1759822629465,1.18889535,4675.4,4675.3,0.7432105]
[1759822630165,1.22122,4676.0,4675.9,0.7406]
[1759822630363,1.56570376,4676.0,4675.9,0.9546]
[1759822630858,1.56570376,4676.0,4675.9,0.6371]
[1759822631061,1.09727,4675.4,4675.3,0.2147105]
[1759822631256,1.09727,4675.4,4675.3,0.2166105]
[1759822631456,1.56577776,4675.4,4675.3,0.0026105]
[1759822631662,1.56577776,4675.4,4675.3,0.2166105]
[1759822631865,1.56577776,4675.4,4675.3,0.0026105]
[1759822632167,4.40751715,4675.4,4675.3,0.2166105]
[1759822633170,4.40751715,4675.4,4675.3,0.0026105]
[1759822636971,4.40751715,4675.4,4675.3,0.2147105]
[1759822637471,4.40751715,4675.4,4675.3,0.0026105]
[1759822639768,4.40751715,4675.4,4674.0,0.2121]
[1759822639769,0.7125,4674.1,4674.0,0.2121]
[1759822639974,0.7125,4673.9,4673.8,1.1255]
[1759822640166,0.7125,4673.9,4673.8,1.3395]
[1759822640367,0.5118,4673.9,4673.8,1.3395]
[1759822640768,0.5118,4673.9,4673.8,1.34159159]
[1759822641376,0.5118,4673.9,4673.8,0.74269159]
[1759822641677,0.3093,4673.9,4673.8,0.95669159]
[1759822642075,0.89668,4674.1,4674.0,0.7406]
[1759822644077,0.5118,4674.1,4674.0,0.7406]
[1759822645176,0.89666,4674.4,4674.3,0.7406]
[1759822645478,1.09736,4674.4,4674.3,0.7406]
[1759822646679,0.5118,4674.4,4674.3,0.9546]
[1759822646877,0.38483,4674.8,4674.7,0.38483]
[1759822647083,0.5271,4675.0,4674.9,0.7406]
[1759822647275,0.78801,4675.0,4674.9,0.7406]
[1759822647475,1.22121,4675.0,4674.9,0.7406]
[1759822647770,0.8364,4675.0,4674.1,3.2078]
[1759822648077,0.5118,4674.4,4674.3,0.7406]
[1759822649279,0.38484,4674.6,4674.4,0.7406]
[1759822649280,0.3093,4674.5,4674.4,0.7406]
[1759822649492,0.5118,4674.5,4674.4,0.7406]
[1759822650775,0.7125,4674.5,4674.4,0.7406]
[1759822651772,0.2025,4674.9,4674.8,0.7406]
[1759822652075,0.38483,4674.8,4674.7,0.38483]
[1759822652269,0.7125,4674.8,4674.7,1.33943]
[1759822652672,0.69407,4675.4,4675.0,0.55]
[1759822652874,0.58727,4675.4,4675.3,0.7406]
[1759822653078,0.78797,4675.4,4675.3,0.4231]
[1759822653374,0.2025,4675.4,4675.3,0.9546]
[1759822653573,0.7125,4675.4,4675.3,0.9546]
[1759822653776,0.7125,4675.4,4675.3,0.215]
[1759822654277,0.7125,4675.4,4675.3,0.4271]
[1759822654478,0.7125,4675.4,4675.3,0.9508]
[1759822656483,3.18416139,4675.4,4675.3,0.2148]
[1759822656781,0.7295,4675.4,4675.3,1.33828]
[1759822658276,0.5288,4675.4,4675.3,1.33828]
[1759822658978,0.7447,4675.4,4675.3,0.9535]
[1759822660183,0.7447,4675.4,4675.3,0.6321]
[1759822660485,0.7447,4675.4,4675.3,0.724]
[1759822660687,0.7447,4675.4,4675.3,0.939]
[1759822662385,0.7447,4675.4,4675.3,0.724]
[1759822662579,0.7447,4675.4,4675.3,0.4171]
[1759822662983,0.7447,4675.4,4675.3,0.6321]
[1759822663182,0.7429,4674.7,4674.6,3.948]
[1759822663482,0.7429,4674.7,4674.6,3.6411]
[1759822663688,0.7429,4674.7,4674.6,3.8561]
[1759822664188,0.7429,4674.7,4674.6,4.163]
[1759822664788,0.7429,4674.7,4674.6,0.9552]
[1759822665588,0.7429,4674.7,4674.6,0.7402]
[1759822665887,0.7429,4674.7,4674.6,0.9552]
[1759822666482,0.38478,4675.3,4674.9,0.38481]
[1759822666682,0.2101,4675.0,4674.9,1.12501]
[1759822667088,0.7017,4675.1,4674.9,0.81811]
[1759822667285,0.9118,4675.1,4675.0,0.7402]
[1759822667587,0.527,4675.1,4675.0,0.7402]
[1759822668191,0.7429,4674.8,4674.7,0.60143]
[1759822668390,0.7429,4674.8,4674.7,1.12333]
[1759822668592,0.7429,4674.8,4674.7,1.34003]
[1759822669493,0.7429,4674.8,4674.7,0.9552]
[1759822669686,0.7429,4674.8,4674.7,0.7402]
[1759822669886,0.7429,4674.8,4674.7,0.9552]
[1759822670287,0.7429,4674.8,4674.5,3.2078]
[1759822670485,0.7429,4674.7,4674.6,0.4316]
[1759822670679,0.3169,4675.6,4675.3,0.3069]
[1759822670883,0.3169,4675.6,4675.5,0.7402]
[1759822670884,0.527,4675.6,4675.5,0.7402]
[1759822671285,0.7429,4675.6,4675.5,0.2166]
[1759822672184,1.1277,4675.1,4675.0,3.2078]
[1759822672384,1.1277,4675.1,4675.0,3.4228]
[1759822672587,1.1277,4675.1,4675.0,3.6394]
[1759822672789,1.1277,4675.1,4675.0,0.4316]
[1759822673284,0.7429,4675.1,4675.0,0.9552]
[1759822673492,0.527,4675.4,4675.3,0.4333]
[1759822673692,0.527,4675.4,4675.3,0.7402]
[1759822673992,0.7429,4675.4,4675.3,0.7402]
[1759822675894,0.527,4675.4,4675.3,0.7402]
[1759822676295,0.2101,4675.4,4675.3,0.7402]
[1759822676483,0.3169,4675.6,4675.5,0.2166]
[1759822676688,0.527,4675.6,4675.5,0.9562]
[1759822677490,0.527,4675.8,4675.7,0.2167]
[1759822677695,0.99716137,4675.8,4675.7,1.12494]
[1759822677895,0.99716137,4675.8,4675.7,0.7402]
[1759822678086,1.21306137,4675.8,4675.7,0.7402]
[1759822678693,0.7429,4675.8,4675.7,0.7402]
[1759822679897,1.21309638,4675.8,4675.7,0.7402]
[1759822680090,0.7429,4675.8,4675.7,0.7402]
[1759822680291,1.2131406,4675.8,4675.7,0.7402]
[1759822680491,1.21314135,4675.8,4675.7,0.7402]
[1759822682191,0.426,4675.6,4675.5,0.216]
[1759822682392,0.7429,4675.6,4675.5,0.216]
[1759822682794,0.7429,4675.6,4675.4,3.2078]
[1759822683001,0.7429,4675.2,4675.1,0.2166]
[1759822683203,0.7429,4675.2,4675.1,0.4316]
[1759822685211,0.7429,4675.2,4674.9,3.2078]
[1759822685511,0.8609,4675.0,4674.9,3.2078]
[1759822685714,0.8609,4675.0,4674.9,0.215]
[1759822686813,0.8609,4675.0,4674.9,0.4315]
[1759822687914,0.8609,4675.0,4674.9,0.9561]
[1759822688115,0.7364,4675.0,4674.9,0.9561]
[1759822688315,0.82113,4674.7,4674.6,0.2165]
[1759822688517,1.12123,4674.7,4674.6,0.4315]
[1759822689311,1.12123,4674.7,4674.5,0.38484]
[1759822689312,0.7364,4674.6,4674.5,0.38484]
[1759822689512,0.7364,4674.6,4674.5,0.59984]
[1759822689715,0.7364,4674.6,4674.5,0.81634]
[1759822689911,0.1245,4675.0,4674.4,3.2078]
[1759822689912,0.80945,4674.5,4674.4,3.2078]
[1759822690118,1.24575,4674.5,4674.4,3.4228]
[1759822690819,1.24575,4674.5,4674.4,3.2078]
[1759822691116,1.24575,4674.5,4674.4,3.4228]
[1759822692416,0.38487,4674.2,4674.0,0.3162]
[1759822692616,0.5608,4674.0,4673.9,3.2078]
[1759822692825,0.8609,4674.0,4673.9,3.6393]
[1759822693121,0.8609,4674.0,4673.9,3.9555]
[1759822693312,0.8609,4674.0,4673.9,4.1639]
[1759822695216,0.7364,4674.0,4673.9,4.1639]
[1759822695621,0.7364,4674.0,4673.9,3.9489]
[1759822695815,0.7364,4674.0,4673.9,4.1639]
[1759822696923,0.7364,4674.0,4673.9,3.9489]
[1759822697125,0.7364,4674.0,4673.9,4.1639]
[1759822697325,0.7364,4674.0,4673.9,3.9489]
[1759822697512,0.7364,4674.0,4673.9,4.1639]
[1759822699227,0.2191,4674.4,4674.3,1.12596]
[1759822699421,0.4363,4674.4,4674.3,1.34096]
[1759822699622,3.16684517,4674.4,4674.3,1.02476]
[1759822699823,3.46694517,4674.4,4674.3,1.02476]
[1759822700125,3.46694517,4674.4,4674.3,0.81636]
[1759822701225,3.46694517,4674.4,4674.3,0.4315]
[1759822701422,3.16684517,4674.4,4674.0,0.38488]
[1759822701720,0.7364,4674.1,4674.0,0.60138]
[1759822701929,0.7364,4674.1,4674.0,1.13258]
[1759822702125,0.7364,4674.1,4674.0,1.34098]
[1759822702625,0.7364,4674.1,4674.0,1.12598]
[1759822702825,1.24579,4674.0,4673.9,3.2078]
[1759822703027,1.24579,4674.0,4673.9,3.4228]
[1759822703222,4.02867374,4674.0,4673.9,3.6393]
[1759822703426,4.02867374,4674.0,4673.9,4.1639]
[1759822703627,3.64378374,4674.0,4673.9,4.1639]
[1759822703833,3.51928374,4674.0,4673.9,4.1639]
[1759822705828,3.00198374,4674.0,4673.9,4.1639]
[1759822706330,3.30208374,4674.0,4673.9,4.1639]
[1759822708229,3.51928374,4674.0,4673.9,4.1639]
[1759822708627,0.5192,4674.0,4673.9,4.1639]
[1759822711523,0.5192,4674.0,4673.9,3.9489]
[1759822711724,0.5192,4674.0,4673.9,4.1639]
[1759822712437,4.32904,4674.6,4674.5,0.7411]
[1759822712630,4.79947095,4674.6,4674.5,0.9561]
[1759822712935,7.58934337,4674.6,4674.5,0.9561]
[1759822713131,7.58934337,4674.6,4674.5,0.6399]